fUST/lending_fUST_20240919
["ID","MTS","AMOUNT","RATE_DAILY","PERIOD"]
[338551624,1726731040867,-151.0,0.00019551,2]
[338551627,1726731040877,-249.735898,0.00019551,2]
[338551629,1726731040887,-249.735898,0.00019551,2]
[338551631,1726731040897,-151.0,0.00019551,2]
[338551633,1726731040906,-264.591703,0.00019551,2]
[338551635,1726731040916,-264.591703,0.00019551,2]
[338551637,1726731040927,-151.0,0.00019551,2]
[338551639,1726731040936,-180.203553,0.00019551,2]
[338551641,1726731040947,-151.0,0.00019551,2]
[338551643,1726731040956,-180.203553,0.00019551,2]
[338551645,1726731040966,-151.0,0.00019551,2]
[338551647,1726731040977,-243.299066,0.00019551,2]
[338551649,1726731040987,-243.299066,0.00019551,2]
[338551651,1726731040997,-151.0,0.00019551,2]
[338551653,1726731041010,-151.0,0.00019551,2]
[338551655,1726731041021,-243.299066,0.00019551,2]
[338551657,1726731041031,-243.299066,0.00019551,2]
[338551659,1726731041040,-151.0,0.00019551,2]
[338551661,1726731041053,-151.0,0.00019551,2]
[338551663,1726731041063,-151.0,0.00019551,2]
[338551665,1726731041073,-151.0,0.00019551,2]
[338551668,1726731041084,-151.0,0.00019551,2]
[338551670,1726731041094,-278.712391,0.00019551,2]
[338551672,1726731041103,-151.0,0.00019561,2]
[338551673,1726731041112,-481.839418,0.00019561,2]
[338551675,1726731041122,-481.839418,0.00019561,2]
[338551678,1726731041132,-185.558402,0.00019561,2]
[338551680,1726731041142,-185.558402,0.00019561,2]
[338551682,1726731041153,-639.11995649,0.00019573,2]
[338551684,1726731041164,-500.72022234,0.00019573,2]
[338551686,1726731041174,-500.0,0.00019573,2]
[338551688,1726731041184,-153.0,0.00019592,2]
[338551690,1726731041195,-153.1755406,0.00019592,2]
[338551692,1726731041206,-153.0,0.00019592,2]
[338551694,1726731041216,-153.0,0.00019592,2]
[338551696,1726731041226,-153.0,0.00019592,2]
[338551699,1726731041237,-153.0,0.00019592,2]
[338551701,1726731041248,-153.0,0.00019592,2]
[338551703,1726731041259,-208.739459,0.00019592,2]
[338551705,1726731041270,-208.7923626,0.00019592,2]
[338551707,1726731041279,-212.0174931,0.00019592,2]
[338551709,1726731041289,-420.0,0.00019639,2]
[338551711,1726731041300,-420.0,0.00019799,2]
[338551713,1726731041311,-4058.013957,0.00019863,2]
[338551716,1726731041322,-150.112233,0.000199,2]
[338551718,1726731041333,-150.112233,0.000199,2]
[338551720,1726731041345,-500.0,0.00019973,2]
[338551722,1726731041354,-500.34215095,0.00019973,2]
[338551724,1726731041365,-511.51574799,0.00019973,2]
[338551726,1726731041375,-500.0,0.00019973,2]
[338551728,1726731041386,-554.15919498,0.00019973,2]
[338551730,1726731041396,-500.0,0.00019973,2]
[338551733,1726731041407,-500.77493312,0.00019973,2]
[338551735,1726731041420,-500.0,0.00019973,2]
[338551737,1726731041431,-500.0,0.00019973,2]
[338551739,1726731041441,-255.57892512,0.00019973,2]
[338551741,1726731041450,-500.0,0.00019973,2]
[338551743,1726731041459,-500.0,0.00019975,2]
[338551745,1726731041469,-151.0,0.0001999,2]
[338551747,1726731041480,-151.0,0.0001999,2]
[338551749,1726731041489,-500.0,0.0001999,2]
[338551751,1726731041499,-163.88665315,0.00019991,2]
[338551754,1726731041514,-336.11334685,0.00019991,2]
[338551756,1726731041524,-279.49911388,0.00019999,2]
[338551758,1726731041534,-4920.61128919,0.00019999,2]
[338551760,1726731041544,-6834.43275973,0.0002,5]
[338551949,1726731043322,-166.45209724,0.00019068,2]
[338551950,1726731043331,-500.0,0.00019444,2]
[338551951,1726731043341,-5262.36775648,0.0002,5]
[338551952,1726731043351,-8883.91099291,0.0002,2]
[338551953,1726731043360,-800.0,0.0002,2]
[338551954,1726731043370,-800.0,0.0002,2]
[338551955,1726731043380,-800.0,0.0002,2]
[338551956,1726731043390,-800.0,0.0002,2]
[338551957,1726731043400,-479.01,0.0002,2]
[338551958,1726731043411,-11043.7621789,0.0002,2]
[338551959,1726731043422,-318.74300759,0.0002,2]
[338551960,1726731043432,-1132.29669397,0.0002,10]
[338551961,1726731043442,-150.0,0.0002,2]
[338551962,1726731043452,-2800.0,0.0002,2]
[338551963,1726731043462,-2800.0,0.0002,2]
[338551964,1726731043473,-660.32447432,0.0002,2]
[338551965,1726731043484,-51274.91702973,0.0002,2]
[338551966,1726731043560,-33.80687356,0.00019444,2]
[338553440,1726731939274,-202.83877894,0.00016253,2]
[338553447,1726732149180,-229.938409,0.00015926,2]
[338553448,1726732149204,-229.938409,0.0001597,2]
[338553449,1726732149229,-229.938409,0.00016013,2]
[338553450,1726732149252,-229.938409,0.00016057,2]
[338553451,1726732149275,-229.938409,0.00016101,2]
[338553452,1726732149297,-229.938409,0.00016144,2]
[338553453,1726732149319,-229.938409,0.00016188,2]
[338553454,1726732149341,-229.938409,0.00016232,2]
[338553455,1726732149363,-1032.6831732,0.00016253,2]
[338553456,1726732149385,-229.938409,0.00016275,2]
[338553457,1726732149413,-229.938409,0.00016319,2]
[338553458,1726732149436,-229.938409,0.00016363,2]
[338553459,1726732149459,-229.938409,0.00016406,2]
[338553460,1726732149481,-229.938409,0.0001645,2]
[338553461,1726732149502,-300.0,0.00016453,2]
[338553462,1726732149523,-300.0,0.00016453,2]
[338553463,1726732149545,-4106.14818892,0.00016454,2]
[338553464,1726732151103,-1375.73665401,0.00016454,2]
[338553465,1726732153121,-7369.25863966,0.00016454,2]
[338553466,1726732154123,-7623.565192,0.00016454,2]
[338553532,1726732232262,-498.25893914,0.00015981,2]
[338553728,1726732238301,-465.97214786,0.00015981,2]
[338553730,1726732238310,-164.67278994,0.00016354,2]
[338553732,1726732238320,-4425.29132541,0.00016454,2]
[338553734,1726732238329,-229.938409,0.00016494,2]
[338553736,1726732238339,-229.938409,0.00016537,2]
[338553738,1726732238348,-229.938409,0.00016581,2]
[338553740,1726732238358,-229.938409,0.00016625,2]
[338553742,1726732238368,-229.938409,0.00016668,2]
[338553744,1726732238377,-229.938409,0.00016712,2]
[338553746,1726732238387,-229.938409,0.00016756,2]
[338553748,1726732238398,-500.0,0.0001678,2]
[338553750,1726732238407,-164.67278992,0.00016863,2]
[338553752,1726732238417,-300.0,0.00017167,2]
[338553754,1726732238427,-300.0,0.00017167,2]
[338553756,1726732238437,-4348.30923595,0.00017168,2]
[338553758,1726732238446,-164.67278992,0.00017371,2]
[338553760,1726732238456,-20088.8507243,0.000175,2]
[338553762,1726732238465,-500.0,0.00017808,2]
[338553764,1726732238475,-16100.98058503,0.0001781,2]
[338553766,1726732238484,-164.67278992,0.0001788,2]
[338553768,1726732238494,-1205.223743,0.00018035,2]
[338553770,1726732238503,-170.543725,0.00018654,2]
[338553772,1726732238513,-420.0,0.00018747,2]
[338553774,1726732238523,-706.88891121,0.00018868,2]
[338553776,1726732238532,-1209.62571093,0.00018872,2]
[338553778,1726732238542,-420.0,0.00018884,2]
[338553780,1726732238551,-1000.0,0.00018886,2]
[338553782,1726732238561,-613.24,0.00018955,3]
[338553784,1726732238570,-500.0,0.00018963,2]
[338553786,1726732238579,-500.0,0.00018963,2]
[338553788,1726732238589,-500.0,0.00018963,2]
[338553790,1726732238599,-1053.94451103,0.00018963,2]
[338553792,1726732238608,-500.0,0.00018963,2]
[338553794,1726732238618,-500.0,0.00018963,2]
[338553796,1726732238627,-1053.94451103,0.00018963,2]
[338553798,1726732238637,-422.5723877,0.00018963,2]
[338553800,1726732238646,-500.0,0.00018963,2]
[338553802,1726732238656,-500.0,0.00018963,2]
[338553804,1726732238665,-500.0,0.00018963,2]
[338553806,1726732238675,-1053.94451103,0.00018963,2]
[338553808,1726732238684,-500.0,0.00018963,2]
[338553810,1726732238693,-1053.94451103,0.00018963,2]
[338553812,1726732238702,-500.0,0.00018963,2]
[338553814,1726732238712,-500.0,0.00018963,2]
[338553816,1726732238721,-500.0,0.00018963,2]
[338553818,1726732238730,-1053.94451103,0.00018963,2]
[338553821,1726732238740,-500.0,0.00018963,2]
[338553823,1726732238750,-500.0,0.00018963,2]
[338553825,1726732238760,-500.0,0.00018963,2]
[338553827,1726732238770,-1053.94451103,0.00018963,2]
[338553829,1726732238779,-500.0,0.00018963,2]
[338553831,1726732238789,-500.0,0.00018963,2]
[338553833,1726732238798,-1053.94451103,0.00018963,2]
[338553835,1726732238807,-500.0,0.00018963,2]
[338553837,1726732238817,-500.0,0.00018963,2]
[338553839,1726732238829,-1053.94451103,0.00018963,2]
[338553841,1726732238838,-250.0,0.00018963,2]
[338553843,1726732238847,-500.0,0.00018963,2]
[338553845,1726732238856,-1053.94451103,0.00018963,2]
[338553847,1726732238866,-204.01629896,0.00018963,2]
[338553849,1726732238875,-1053.94451103,0.00018963,2]
[338553851,1726732238884,-500.0,0.00018963,2]
[338553853,1726732238894,-1053.94451103,0.00018963,2]
[338553855,1726732238904,-500.0,0.00018963,2]
[338553856,1726732238913,-1053.94451103,0.00018963,2]
[338553858,1726732238923,-500.0,0.00018963,2]
[338553860,1726732238932,-1053.94451103,0.00018963,2]
[338553862,1726732238942,-500.0,0.00018963,2]
[338553864,1726732238952,-1053.94451103,0.00018963,2]
[338553866,1726732238961,-500.0,0.00018963,2]
[338553868,1726732238970,-1053.94451103,0.00018963,2]
[338553870,1726732238980,-500.0,0.00018963,2]
[338553872,1726732238989,-1053.94451103,0.00018963,2]
[338553874,1726732238999,-500.0,0.00018963,2]
[338553876,1726732239008,-1053.94451103,0.00018963,2]
[338553878,1726732239018,-500.0,0.00018963,2]
[338553880,1726732239029,-500.0,0.00018963,2]
[338553882,1726732239039,-1053.94451103,0.00018963,2]
[338553884,1726732239048,-1053.94451103,0.00018963,2]
[338553886,1726732239057,-500.0,0.00018963,2]
[338553888,1726732239067,-1053.94451103,0.00018963,2]
[338553890,1726732239076,-500.0,0.00018963,2]
[338553891,1726732239086,-1053.94451103,0.00018963,2]
[338553893,1726732239095,-500.0,0.00018963,2]
[338553895,1726732239104,-1053.94451103,0.00018963,2]
[338553897,1726732239113,-500.0,0.00018963,2]
[338553899,1726732239123,-1053.94451103,0.00018963,2]
[338553901,1726732239133,-500.0,0.00018963,2]
[338553903,1726732239142,-1053.94451103,0.00018963,2]
[338553905,1726732239151,-1053.94451103,0.00018963,2]
[338553907,1726732239160,-1053.94451103,0.00018963,2]
[338553909,1726732239171,-500.0,0.00018963,2]
[338553911,1726732239182,-1053.94451103,0.00018963,2]
[338553913,1726732239192,-1053.94451103,0.00018963,2]
[338553915,1726732239202,-1053.94451103,0.00018963,2]
[338553917,1726732239215,-618.19050982,0.00018963,2]
[338553920,1726732239225,-1053.94451103,0.00018963,2]
[338553922,1726732239237,-1053.94451103,0.00018963,2]
[338553924,1726732239248,-500.0,0.00018963,2]
[338553926,1726732239259,-1053.94451103,0.00018963,2]
[338553928,1726732239268,-1053.94451103,0.00018963,2]
[338553930,1726732239279,-500.0,0.00018963,2]
[338553932,1726732239288,-1053.94451103,0.00018963,2]
[338553934,1726732239298,-1053.94451103,0.00018963,2]
[338553936,1726732239307,-500.0,0.00018963,2]
[338553938,1726732239317,-1053.94451103,0.00018963,2]
[338553941,1726732239338,-1053.94451103,0.00018963,2]
[338553943,1726732239348,-1053.94451103,0.00018963,2]
[338553945,1726732239358,-1053.94451103,0.00018963,2]
[338553947,1726732239368,-1053.94451103,0.00018963,2]
[338553949,1726732239378,-1053.94451103,0.00018963,2]
[338553951,1726732239387,-1053.94451103,0.00018963,2]
[338553953,1726732239397,-1053.94451103,0.00018963,2]
[338553955,1726732239407,-1053.94451103,0.00018963,2]
[338553957,1726732239417,-1053.94451103,0.00018963,2]
[338553959,1726732239427,-1053.94451103,0.00018963,2]
[338553961,1726732239437,-1053.94451103,0.00018963,2]
[338553963,1726732239446,-1053.94451103,0.00018963,2]
[338553965,1726732239456,-1053.94451103,0.00018963,2]
[338553967,1726732239466,-1053.94451103,0.00018963,2]
[338553969,1726732239475,-1053.94451103,0.00018963,2]
[338553971,1726732239485,-1053.94451103,0.00018963,2]
[338553973,1726732239495,-390.39473149,0.00018964,2]
[338553975,1726732239505,-500.0,0.00018964,2]
[338553977,1726732239515,-500.0,0.00018964,2]
[338554010,1726732239840,-500.0,0.00018964,2]
[338554012,1726732239852,-500.0,0.00018964,2]
[338554015,1726732239863,-500.0,0.00018964,2]
[338554017,1726732239876,-302.41106844,0.00018964,2]
[338554019,1726732239886,-592.53066473,0.00018964,2]
[338554021,1726732239897,-500.0,0.00018964,2]
[338554023,1726732239907,-500.0,0.00018964,2]
[338554025,1726732239918,-500.0,0.00018964,2]
[338554027,1726732239929,-403.20211333,0.00018964,2]
[338554029,1726732239939,-576.58519971,0.00018964,2]
[338554031,1726732239949,-500.0,0.00018964,2]
[338554033,1726732239959,-500.0,0.00018964,2]
[338554035,1726732239968,-18586.76171498,0.00018964,5]
[338554037,1726732239978,-69716.5155833,0.00018965,3]
[338554040,1726732239996,-15421.503397,0.00018965,3]
[338554044,1726732240032,-1053.94451103,0.00018963,2]
[338554046,1726732240043,-15765.25548897,0.00018965,3]
[338554049,1726732240056,-693.1,0.00018965,3]
[338554125,1726732240886,-1053.94451103,0.00018963,2]
[338554127,1726732240895,-1053.94451103,0.00018963,2]
[338554129,1726732240905,-1053.94451103,0.00018963,2]
[338554131,1726732240917,-1053.94451103,0.00018963,2]
[338554133,1726732240927,-1053.94451103,0.00018963,2]
[338554135,1726732240936,-1053.94451103,0.00018963,2]
[338554137,1726732240946,-1053.94451103,0.00018963,2]
[338554139,1726732240956,-1053.94451103,0.00018963,2]
[338554141,1726732240966,-1053.94451103,0.00018963,2]
[338554143,1726732240975,-1053.94451103,0.00018963,2]
[338554145,1726732240985,-1053.94451103,0.00018963,2]
[338554147,1726732240995,-1053.94451103,0.00018963,2]
[338554149,1726732241007,-1053.94451103,0.00018963,2]
[338554151,1726732241017,-500.0,0.00018963,2]
[338554153,1726732241028,-1053.94451103,0.00018963,2]
[338554155,1726732241137,-500.0,0.00018963,2]
[338554157,1726732241147,-172041.47072194,0.00018965,3]
[338554368,1726732243329,-1533.06,0.00018955,3]
[338554369,1726732243339,-87124.57822854,0.00018965,3]
[338556496,1726732803698,500.0,0.0001,2]
[338556508,1726733050064,450.0,0.00014013,5]
[338556515,1726733078395,350.0,0.00014013,2]
[338556516,1726733089431,190.5087162,0.00013688,2]
[338556522,1726733177328,300.0,0.00014013,5]
[338556524,1726733215146,-441.88302,0.00014164,2]
[338556525,1726733215168,-6277.68500783,0.00014238,2]
[338556550,1726733286609,1346.92409535,0.00014013,2]
[338556551,1726733296815,10000.0,0.00014013,2]
[338556555,1726733345147,-160.43222056,0.00014137,2]
[338556556,1726733345169,-300.0,0.00014237,2]
[338556557,1726733345190,-300.0,0.00014237,2]
[338556558,1726733345211,-14553.71692677,0.00014238,2]
[338556559,1726733345233,-190.352964,0.00014472,2]
[338556560,1726733345255,-190.352964,0.00014724,2]
[338556561,1726733345276,-190.352964,0.00014975,2]
[338556562,1726733345298,-190.352964,0.00015226,2]
[338556563,1726733345320,-160.43222056,0.00015275,2]
[338556564,1726733345345,-21295.76527809,0.00015342,2]
[338556565,1726733354606,-3604.23472191,0.00015342,2]
[338556566,1726733354626,-5541.659704,0.00015375,2]
[338556567,1726733354646,-464.94439998,0.000154,2]
[338556568,1726733365111,-35.05560002,0.000154,2]
[338556569,1726733365132,-370.33467898,0.00015516,2]
[338556573,1726733380937,1783.0,0.0002051,120]
[338556577,1726733424318,10000.0,0.00014013,2]
[338556772,1726733438485,-644.350922,0.00015808,2]
[338556773,1726733438495,-600.0,0.00016053,2]
[338556774,1726733438504,-927.9847555,0.00016123,2]
[338556775,1726733438513,-318.3363211,0.0001655,2]
[338556776,1726733438522,-1514.4074513,0.00016564,2]
[338556777,1726733438532,-246.5224538,0.00016603,2]
[338556778,1726733438542,-24900.0,0.00016689,2]
[338556779,1726733438551,-1000.0,0.0001677,2]
[338556780,1726733438560,-600.0,0.00017423,2]
[338556781,1726733438569,-500.0,0.00017808,2]
[338556782,1726733438578,-300.0,0.00018383,2]
[338556783,1726733438587,-150.0,0.00018384,2]
[338556784,1726733438596,-524.0,0.00018384,2]
[338556785,1726733438606,-1216.0,0.00018384,2]
[338556786,1726733438615,-600.0,0.00018519,2]
[338556787,1726733438624,-600.0,0.00018595,2]
[338556788,1726733438633,-4620.81419568,0.00018727,2]
[338556789,1726733438642,-162.62098996,0.00018727,2]
[338556790,1726733438651,-1088.66313981,0.00018728,2]
[338556791,1726733438660,-208.7923626,0.00018756,2]
[338556792,1726733438668,-1001.26542626,0.00018773,2]
[338556793,1726733438677,-1355.23,0.00018817,3]
[338556794,1726733438686,-677.61,0.00018817,3]
[338556795,1726733438695,-338.81,0.00018817,3]
[338556796,1726733438704,-169.4,0.00018817,3]
[338556797,1726733438713,-508.24,0.00018817,3]
[338556798,1726733438722,-500.0,0.00018827,2]
[338556799,1726733438731,-500.0,0.00018827,2]
[338556800,1726733438740,-500.0,0.00018827,2]
[338556801,1726733438749,-500.0,0.00018827,2]
[338556802,1726733438758,-500.0,0.00018827,2]
[338556803,1726733438767,-244.89069988,0.00018827,2]
[338556804,1726733438776,-500.0,0.00018827,2]
[338556805,1726733438787,-500.0,0.00018827,2]
[338556806,1726733438796,-500.0,0.00018827,2]
[338556807,1726733438805,-500.0,0.00018827,2]
[338556809,1726733438814,-500.0,0.00018827,2]
[338556810,1726733438824,-500.0,0.00018827,2]
[338556812,1726733438833,-500.0,0.00018827,2]
[338556813,1726733438842,-400.0,0.00018827,2]
[338556815,1726733438851,-500.0,0.00018827,2]
[338556816,1726733438860,-500.0,0.00018827,2]
[338556818,1726733438869,-500.0,0.00018827,2]
[338556820,1726733438878,-500.0,0.00018827,2]
[338556822,1726733438887,-500.0,0.00018827,2]
[338556823,1726733438896,-500.0,0.00018827,2]
[338556825,1726733438905,-500.0,0.00018827,2]
[338556827,1726733438915,-350.00000005,0.00018827,2]
[338556829,1726733438924,-500.0,0.00018827,2]
[338556831,1726733438933,-500.0,0.00018827,2]
[338556833,1726733438942,-500.0,0.00018827,2]
[338556835,1726733438951,-500.0,0.00018827,2]
[338556837,1726733438961,-500.0,0.00018827,2]
[338556839,1726733438970,-500.0,0.00018827,2]
[338556841,1726733438979,-500.0,0.00018827,2]
[338556843,1726733438988,-500.0,0.00018827,2]
[338556845,1726733438997,-500.0,0.00018827,2]
[338556847,1726733439006,-500.0,0.00018827,2]
[338556849,1726733439016,-500.0,0.00018827,2]
[338556851,1726733439025,-500.0,0.00018827,2]
[338556853,1726733439035,-500.0,0.00018827,2]
[338556855,1726733439044,-500.0,0.00018827,2]
[338556857,1726733439054,-500.0,0.00018827,2]
[338556859,1726733439063,-500.0,0.00018827,2]
[338556861,1726733439072,-500.0,0.00018827,2]
[338556862,1726733439081,-500.0,0.00018827,2]
[338556864,1726733439090,-500.0,0.00018827,2]
[338556866,1726733439099,-500.0,0.00018827,2]
[338556868,1726733439107,-300.00000001,0.00018827,2]
[338556870,1726733439117,-500.0,0.00018827,2]
[338556872,1726733439126,-500.0,0.00018827,2]
[338556874,1726733439135,-500.0,0.00018827,2]
[338556876,1726733439144,-250.0,0.00018827,2]
[338556878,1726733439153,-500.0,0.00018827,2]
[338556880,1726733439162,-500.0,0.00018827,2]
[338556882,1726733439171,-500.0,0.00018827,2]
[338556884,1726733439181,-500.0,0.00018827,2]
[338556886,1726733439190,-500.0,0.00018827,2]
[338556888,1726733439198,-500.0,0.00018827,2]
[338556889,1726733439208,-500.0,0.00018827,2]
[338556891,1726733439218,-2380.51534809,0.00018827,2]
[338556893,1726733439226,-275.6262647,0.00018827,2]
[338556895,1726733439236,-500.0,0.00018827,2]
[338556897,1726733439245,-2380.51534809,0.00018827,2]
[338556899,1726733439254,-500.0,0.00018827,2]
[338556901,1726733439264,-2380.51534809,0.00018827,2]
[338556903,1726733439272,-500.0,0.00018827,2]
[338556905,1726733439283,-2380.51534809,0.00018827,2]
[338556907,1726733439292,-500.0,0.00018827,2]
[338556909,1726733439301,-2380.51534809,0.00018827,2]
[338556911,1726733439310,-500.0,0.00018827,2]
[338556913,1726733439318,-500.0,0.00018827,2]
[338556915,1726733439327,-2380.51534809,0.00018827,2]
[338556917,1726733439336,-500.0,0.00018827,2]
[338556919,1726733439346,-2380.51534809,0.00018827,2]
[338556921,1726733439358,-500.0,0.00018827,2]
[338556923,1726733439367,-2380.51534809,0.00018827,2]
[338556925,1726733439376,-500.0,0.00018827,2]
[338556927,1726733439386,-2380.51534809,0.00018827,2]
[338556929,1726733439394,-500.0,0.00018827,2]
[338556931,1726733439403,-2380.51534809,0.00018827,2]
[338556933,1726733439412,-500.0,0.00018827,2]
[338556935,1726733439424,-2380.51534809,0.00018827,2]
[338556937,1726733439433,-500.0,0.00018827,2]
[338556939,1726733439443,-2380.51534809,0.00018827,2]
[338556941,1726733439452,-500.0,0.00018827,2]
[338556943,1726733439461,-2380.51534809,0.00018827,2]
[338556945,1726733439470,-500.0,0.00018827,2]
[338556947,1726733439479,-2380.51534809,0.00018827,2]
[338556949,1726733439489,-387.66316116,0.00018827,2]
[338556951,1726733439499,-2380.51534809,0.00018827,2]
[338556953,1726733439509,-500.0,0.00018827,2]
[338556955,1726733439518,-500.0,0.00018827,2]
[338556957,1726733439528,-2380.51534809,0.00018827,2]
[338556959,1726733439538,-500.0,0.00018827,2]
[338556961,1726733439548,-2380.51534809,0.00018827,2]
[338556963,1726733439557,-500.0,0.00018827,2]
[338556965,1726733439567,-2380.51534809,0.00018827,2]
[338556967,1726733439576,-500.0,0.00018827,2]
[338556969,1726733439585,-2380.51534809,0.00018827,2]
[338556970,1726733439595,-500.0,0.00018827,2]
[338556972,1726733439604,-500.0,0.00018827,2]
[338556974,1726733439613,-2380.51534809,0.00018827,2]
[338556976,1726733439623,-2380.51534809,0.00018827,2]
[338556978,1726733439633,-500.0,0.00018827,2]
[338556980,1726733439643,-500.0,0.00018827,2]
[338556982,1726733439653,-2380.51534809,0.00018827,2]
[338556984,1726733439662,-500.0,0.00018827,2]
[338556987,1726733439675,-2380.51534809,0.00018827,2]
[338556989,1726733439684,-500.0,0.00018827,2]
[338556991,1726733439694,-2380.51534809,0.00018827,2]
[338556993,1726733439703,-500.0,0.00018827,2]
[338556995,1726733439712,-2380.51534809,0.00018827,2]
[338556997,1726733439723,-500.0,0.00018827,2]
[338556998,1726733439732,-2380.51534809,0.00018827,2]
[338557000,1726733439741,-500.0,0.00018827,2]
[338557002,1726733439750,-500.0,0.00018827,2]
[338557004,1726733439760,-2380.51534809,0.00018827,2]
[338557006,1726733439769,-500.0,0.00018827,2]
[338557008,1726733439778,-2380.51534809,0.00018827,2]
[338557010,1726733439789,-500.0,0.00018827,2]
[338557012,1726733439798,-500.0,0.00018827,2]
[338557014,1726733439807,-500.0,0.00018827,2]
[338557016,1726733439816,-2380.51534809,0.00018827,2]
[338557018,1726733439826,-500.0,0.00018827,2]
[338557020,1726733439835,-2380.51534809,0.00018827,2]
[338557022,1726733439845,-2380.51534809,0.00018827,2]
[338557024,1726733439854,-2380.51534809,0.00018827,2]
[338557026,1726733439863,-500.0,0.00018827,2]
[338557028,1726733439872,-2380.51534809,0.00018827,2]
[338557030,1726733439881,-500.0,0.00018827,2]
[338557032,1726733439891,-2380.51534809,0.00018827,2]
[338557034,1726733439900,-500.0,0.00018827,2]
[338557036,1726733439909,-2380.51534809,0.00018827,2]
[338557038,1726733439918,-500.0,0.00018827,2]
[338557040,1726733439927,-2380.51534809,0.00018827,2]
[338557042,1726733439937,-500.0,0.00018827,2]
[338557044,1726733439947,-2380.51534809,0.00018827,2]
[338557046,1726733439957,-500.0,0.00018827,2]
[338557048,1726733439966,-2380.51534809,0.00018827,2]
[338557050,1726733439976,-500.0,0.00018827,2]
[338557052,1726733439986,-2380.51534809,0.00018827,2]
[338557054,1726733439996,-500.0,0.00018827,2]
[338557056,1726733440005,-500.0,0.00018827,2]
[338557058,1726733440015,-500.0,0.00018827,2]
[338557060,1726733440024,-2380.51534809,0.00018827,2]
[338557062,1726733440036,-500.0,0.00018827,2]
[338557064,1726733440047,-2380.51534809,0.00018827,2]
[338557066,1726733440056,-500.0,0.00018827,2]
[338557068,1726733440066,-500.0,0.00018827,2]
[338557070,1726733440076,-2380.51534809,0.00018827,2]
[338557072,1726733440086,-500.0,0.00018827,2]
[338557074,1726733440096,-500.0,0.00018827,2]
[338557076,1726733440105,-2380.51534809,0.00018827,2]
[338557078,1726733440115,-2380.51534809,0.00018827,2]
[338557104,1726733440362,-2380.51534809,0.00018827,2]
[338557105,1726733440371,-2380.51534809,0.00018827,2]
[338557108,1726733440381,-2380.51534809,0.00018827,2]
[338557110,1726733440391,-500.0,0.00018827,2]
[338557112,1726733440401,-200.0,0.00018827,2]
[338557113,1726733440410,-500.0,0.00018827,2]
[338557115,1726733440419,-500.0,0.00018827,2]
[338557117,1726733440430,-2348.05377517,0.00018827,2]
[338557119,1726733440439,-500.0,0.00018827,2]
[338557121,1726733440448,-2348.05377517,0.00018827,2]
[338557123,1726733440458,-500.0,0.00018827,2]
[338557125,1726733440466,-2348.05377517,0.00018827,2]
[338557127,1726733440475,-2348.05377517,0.00018827,2]
[338557129,1726733440485,-2348.05377517,0.00018827,2]
[338557131,1726733440494,-2348.05377517,0.00018827,2]
[338557133,1726733440503,-2348.05377517,0.00018827,2]
[338557135,1726733440512,-2348.05377517,0.00018827,2]
[338557137,1726733440522,-2348.05377517,0.00018827,2]
[338557139,1726733440531,-2348.05377517,0.00018827,2]
[338557141,1726733440541,-2348.05377517,0.00018827,2]
[338557143,1726733440550,-2367.62088997,0.00018827,2]
[338557145,1726733440559,-2367.62088997,0.00018827,2]
[338557147,1726733440570,-2367.62088997,0.00018827,2]
[338557149,1726733440579,-2367.62088997,0.00018827,2]
[338557151,1726733440589,-2367.62088997,0.00018827,2]
[338557153,1726733440598,-2367.62088997,0.00018827,2]
[338557155,1726733440607,-2367.62088997,0.00018827,2]
[338557157,1726733440616,-2367.62088997,0.00018827,2]
[338557159,1726733440626,-2367.62088997,0.00018827,2]
[338557161,1726733440635,-2367.62088997,0.00018827,2]
[338557163,1726733440645,-2367.62088997,0.00018827,2]